bitfinex-derivatives/quotes_BTCF0:USTF0_20250130
["timestamp","ask_amount","ask_price","bid_price","bid_amount"]
[1738244724740,0.3718,105060.0,105050.0,0.2045556]
[1738244724935,0.562195,105060.0,105050.0,0.2372356]
[1738244725137,0.562195,105060.0,105050.0,0.2362356]
[1738244726032,0.562195,105060.0,105050.0,0.34002622]
[1738244727041,0.596595,105060.0,105050.0,0.2362356]
[1738244727233,0.596595,105060.0,105050.0,0.2035556]
[1738244729837,0.70038562,105060.0,105050.0,0.2035556]
[1738244730042,0.596595,105060.0,105050.0,0.2035556]
[1738244731142,0.628395,105060.0,105050.0,0.2035556]
[1738244739543,0.73218562,105060.0,105050.0,0.0131426]
[1738244741949,0.628395,105060.0,105050.0,0.2035556]
[1738244742438,0.73218562,105060.0,105050.0,0.2035556]
[1738244742640,0.73218562,105060.0,105050.0,0.0131426]
[1738244743046,0.64558124,105060.0,105030.0,0.17068509]
[1738244743242,0.65502262,105040.0,105030.0,0.36113209]
[1738244743647,0.68892262,105040.0,105030.0,0.17068509]
[1738244744356,0.68892262,105040.0,105030.0,0.17968509]
[1738244744954,0.68892262,105040.0,105030.0,0.17068509]
[1738244745143,0.68992262,105040.0,105030.0,0.17968509]
[1738244745343,0.68992262,105040.0,105030.0,0.014]
[1738244746245,0.68992262,105040.0,105030.0,0.011]
[1738244746446,0.72402262,105040.0,105030.0,0.011]
[1738244747648,0.72402262,105040.0,105030.0,0.002]
[1738244749446,0.53359062,105040.0,105020.0,0.190466]
[1738244749643,0.68804062,105030.0,105020.0,0.190466]
[1738244749945,0.22345,105030.0,105020.0,0.190466]
[1738244750946,0.68804062,105030.0,105020.0,0.190466]
[1738244751754,0.68904062,105030.0,105020.0,0.190466]
[1738244752558,0.58525,105030.0,105020.0,0.190466]
[1738244753063,0.58525,105030.0,105020.0,0.192466]
[1738244754249,0.58525,105030.0,105020.0,0.002]
[1738244754650,0.68904062,105030.0,105020.0,0.002]
[1738244755256,0.22445,105030.0,105020.0,0.002]
[1738244755557,0.22445,105030.0,105020.0,0.192468]
[1738244756355,0.32824062,105030.0,105020.0,0.002]
[1738244759251,0.68904062,105030.0,105020.0,0.002]
[1738244761552,0.58525,105030.0,105020.0,0.192468]
[1738244761745,0.22445,105030.0,105020.0,0.192468]
[1738244763060,0.32824062,105030.0,105020.0,0.002]
[1738244763754,0.68904062,105030.0,105020.0,0.002]
[1738244764760,0.68904062,105030.0,105020.0,0.192468]
[1738244764962,0.32824062,105030.0,105020.0,0.192468]
[1738244767256,0.22445,105030.0,105020.0,0.192468]
[1738244768559,0.68904062,105030.0,105020.0,0.002]
[1738244770059,0.58525,105030.0,105020.0,0.192468]
[1738244771054,0.22445,105030.0,105020.0,0.192468]
[1738244771254,0.32824062,105030.0,105020.0,0.20735513]
[1738244771554,0.22445,105030.0,105020.0,0.20735513]
[1738244771758,0.58525,105030.0,105020.0,0.20735513]
[1738244772159,0.68904062,105030.0,105020.0,0.002]
[1738244773464,0.68904062,105030.0,105020.0,0.192468]
[1738244774257,0.58525,105030.0,105020.0,0.192468]
[1738244774752,0.22445,105030.0,105020.0,0.56815549]
[1738244774952,0.011,105030.0,105020.0,0.70458611]
[1738244775152,0.011,105030.0,105020.0,0.73938611]
[1738244775153,0.001,105030.0,105020.0,0.73938611]
[1738244775462,0.001,105030.0,105020.0,0.77298611]
[1738244776668,0.001,105030.0,105020.0,0.41218611]
[1738244776967,0.001,105030.0,105020.0,0.41218412]
[1738244777558,0.001,105030.0,105020.0,0.77298412]
[1738244777861,0.001,105030.0,105020.0,0.6406354]
[1738244778370,0.001,105030.0,105020.0,1.0014354]
[1738244779367,0.001,105030.0,105020.0,0.9914354]
[1738244780570,0.001,105030.0,105020.0,0.93423941]
[1738244781571,0.001,105030.0,105020.0,0.90159941]
[1738244781761,0.001,105030.0,105020.0,0.93419941]
[1738244784062,0.001,105030.0,105020.0,0.57339941]
[1738244784263,0.65604062,105030.0,105020.0,0.20585559]
[1738244784467,0.68994062,105030.0,105020.0,0.17325559]
[1738244785577,0.58615,105030.0,105020.0,0.17225559]
[1738244785763,0.58515,105030.0,105020.0,0.17225559]
[1738244785963,0.68894062,105030.0,105020.0,0.17225559]
[1738244788665,0.68894062,105030.0,105020.0,0.36272359]
[1738244789963,0.68894062,105030.0,105020.0,0.46651421]
[1738244789964,0.0439,105030.0,105020.0,0.46651421]
[1738244790170,0.0339,105030.0,105020.0,0.85991421]
[1738244790365,0.0794,105040.0,105030.0,0.19045]
[1738244790560,0.0445,105040.0,105030.0,0.39803124]
[1738244790965,0.0445,105040.0,105030.0,0.75883124]
[1738244791171,0.0445,105040.0,105030.0,0.65504062]
[1738244791565,0.0445,105040.0,105030.0,0.68764062]
[1738244792168,0.0455,105040.0,105030.0,0.68764062]
[1738244792369,0.0455,105040.0,105030.0,0.65504062]
[1738244792566,0.0455,105040.0,105030.0,0.68764062]
[1738244793273,0.0455,105040.0,105030.0,0.70250853]
[1738244793676,0.0455,105040.0,105030.0,0.70350853]
[1738244794377,0.0455,105040.0,105030.0,0.68864062]
[1738244794871,0.0458426,105050.0,105040.0,0.190431]
[1738244795075,0.0458426,105050.0,105040.0,0.68762162]
[1738244796061,0.0468426,105050.0,105040.0,0.68762162]
[1738244798473,0.0011426,105050.0,105040.0,0.70250361]
[1738244798670,0.0011426,105050.0,105040.0,0.74660361]
[1738244798873,0.0011426,105050.0,105040.0,0.76610361]
[1738244799482,0.0424,105070.0,105060.0,0.190395]
[1738244799775,0.0695,105080.0,105070.0,0.190377]
[1738244799971,0.0795,105080.0,105070.0,0.65496762]
[1738244800165,0.0795,105080.0,105070.0,1.28496762]
[1738244800371,0.0795,105080.0,105070.0,0.29416762]
[1738244801175,0.0795,105080.0,105070.0,0.190377]
[1738244801667,0.269859,105080.0,105070.0,0.190377]
[1738244801871,0.193377,105070.0,105060.0,0.1905376]
[1738244802181,0.013,105070.0,105060.0,0.65512822]
[1738244802567,0.01,105070.0,105060.0,0.65512822]
[1738244803073,0.01,105070.0,105060.0,0.68768822]
[1738244804274,0.0446,105070.0,105060.0,0.68768822]
[1738244804473,0.0486,105070.0,105060.0,0.5838976]
[1738244804672,0.238977,105070.0,105060.0,0.5838976]
[1738244804874,0.228977,105070.0,105060.0,0.5838976]
[1738244805268,0.589777,105070.0,105060.0,0.0327026]
[1738244805480,0.590777,105070.0,105060.0,0.0327026]
[1738244807577,0.229977,105070.0,105060.0,0.0327026]
[1738244807781,0.229977,105070.0,105060.0,0.0001426]
[1738244809179,0.229977,105070.0,105060.0,0.1905376]
[1738244809977,0.590777,105070.0,105060.0,0.1905376]
[1738244810688,0.229977,105070.0,105060.0,0.1905376]
[1738244811786,0.229977,105070.0,105060.0,0.36148749]
[1738244813485,0.69456762,105070.0,105060.0,0.17109249]
[1738244813680,0.590777,105070.0,105060.0,0.17109249]
[1738244814486,0.69456762,105070.0,105060.0,0.17109249]
[1738244814990,0.69456762,105070.0,105060.0,0.01359249]
[1738244815179,0.55178562,105070.0,105040.0,0.222984]
[1738244815375,0.551213,105050.0,105040.0,0.190424]
[1738244815580,0.190413,105050.0,105040.0,0.190424]
[1738244815780,0.551213,105050.0,105040.0,0.190424]
[1738244816588,0.551213,105050.0,105040.0,0.191424]
[1738244816990,0.551213,105050.0,105040.0,0.192424]
[1738244817187,0.190413,105050.0,105040.0,0.192424]
[1738244817389,0.551213,105050.0,105040.0,0.192424]
[1738244817990,0.65500362,105050.0,105040.0,0.002]
[1738244818192,0.71920362,105050.0,105040.0,0.192431]
[1738244818491,0.649913,105050.0,105040.0,0.192431]
[1738244819198,0.649913,105050.0,105040.0,0.002]
[1738244819382,0.650913,105050.0,105040.0,0.001]
[1738244819583,0.200431,105040.0,105030.0,0.223]
[1738244819984,0.200431,105040.0,105030.0,0.22296]
[1738244820595,0.01,105040.0,105020.0,0.66722329]
[1738244820787,0.190449,105030.0,105020.0,0.39309167]
[1738244820984,0.222049,105030.0,105020.0,0.17043267]
[1738244821198,0.582849,105030.0,105020.0,0.17043267]
[1738244821386,0.651849,105030.0,105020.0,0.17043267]
[1738244821698,0.01,105020.0,105010.0,1.34928962]
[1738244822188,0.01,105020.0,105010.0,0.71928962]
[1738244823485,0.011,105020.0,105010.0,0.32896962]
[1738244823697,0.011,105020.0,105010.0,0.36148962]
[1738244824196,0.011,105020.0,105010.0,0.72228962]
[1738244825988,0.011,105020.0,105010.0,0.36148962]
[1738244827195,0.011,105020.0,105010.0,0.72228962]
[1738244829488,0.011,105020.0,105010.0,0.36148962]
[1738244830292,0.201468,105020.0,105010.0,0.32978962]
[1738244830493,0.201468,105020.0,105010.0,0.225999]
[1738244832992,0.011,105020.0,105010.0,0.32978962]
[1738244834988,0.011,105020.0,105010.0,0.69058962]
[1738244835193,0.011,105020.0,105010.0,0.32978962]
[1738244835500,0.011,105020.0,105010.0,0.69058962]
[1738244835803,0.011,105020.0,105010.0,0.32978962]
[1738244838694,0.011,105020.0,105010.0,0.69058962]
[1738244839100,0.011,105020.0,105010.0,0.32978962]
[1738244840902,0.201468,105020.0,105010.0,0.193479]
[1738244841092,0.201468,105020.0,105010.0,0.225959]
[1738244841703,0.191468,105020.0,105010.0,0.03548]
[1738244842602,0.29525862,105020.0,105010.0,0.03548]
[1738244843396,0.191468,105020.0,105010.0,0.03548]
[1738244844698,0.29525862,105020.0,105010.0,0.03548]
[1738244845403,0.65605862,105020.0,105010.0,0.003]
[1738244845708,0.29525862,105020.0,105010.0,0.003]
[1738244846005,0.65605862,105020.0,105010.0,0.003]
[1738244849497,0.01,105010.0,105000.0,0.1]
[1738244849695,0.76537662,105010.0,105000.0,0.1]
[1738244850713,0.76637662,105010.0,105000.0,0.104]
[1738244866938,0.96591808,105010.0,105000.0,0.104]
[1738244867435,0.20054,104980.0,104970.0,0.190554]
[1738244867637,0.66513062,104980.0,104970.0,0.190554]
[1738244867828,0.190558,104970.0,104960.0,0.063]
[1738244868031,0.65514862,104970.0,104960.0,0.286016]
[1738244868223,0.65514862,104970.0,104960.0,0.253576]
[1738244868428,0.65514862,104970.0,104960.0,0.0302]
[1738244868939,0.01,104960.0,104950.0,0.70343868]
[1738244869130,0.200576,104960.0,104950.0,0.8072293]
[1738244869331,0.200576,104960.0,104950.0,0.8728693]
[1738244869635,0.200576,104960.0,104950.0,0.76907868]
[1738244870940,0.66516662,104960.0,104950.0,0.76907868]
[1738244871138,0.66616662,104960.0,104950.0,0.57848968]
[1738244871736,0.66616662,104960.0,104950.0,0.35055649]
[1738244871937,0.66616662,104960.0,104950.0,0.0332]
[1738244873740,0.66616662,104960.0,104950.0,0.0352]
[1738244877242,0.30536662,104960.0,104950.0,0.225794]
[1738244879256,0.66616662,104960.0,104950.0,0.225794]
[1738244880151,0.66616662,104960.0,104950.0,0.0352]
[1738244880948,0.66616662,104960.0,104950.0,0.002]
[1738244886058,0.66616662,104960.0,104950.0,0.192595]
[1738244886259,0.66616662,104960.0,104950.0,0.002]
[1738244888554,0.65616662,104960.0,104950.0,0.002]
[1738244889666,0.65616662,104960.0,104950.0,0.192594]
[1738244890549,0.191576,104960.0,104950.0,0.192594]
[1738244890962,0.552376,104960.0,104950.0,0.192594]
[1738244891650,0.65616662,104960.0,104950.0,0.192594]
[1738244892046,0.552376,104960.0,104950.0,0.192594]
[1738244892952,0.552376,104960.0,104950.0,0.002]
[1738244893560,0.552376,104960.0,104950.0,0.192594]
[1738244894256,0.562376,104960.0,104950.0,0.29638462]
[1738244894460,0.191576,104960.0,104950.0,0.32758462]
[1738244894760,0.66616662,104960.0,104950.0,0.0332]
[1738244895058,0.66616662,104960.0,104950.0,0.223794]
[1738244895059,0.562376,104960.0,104950.0,0.223794]
[1738244895259,0.65616662,104960.0,104950.0,0.002]
[1738244895564,0.68746662,104960.0,104950.0,0.002]
[1738244895759,0.583676,104960.0,104950.0,0.002]
[1738244898950,0.583676,104960.0,104950.0,0.192594]
[1738244899150,0.201576,104960.0,104950.0,0.29638462]
[1738244899352,0.191576,104960.0,104950.0,0.29638462]
[1738244899554,0.201576,104960.0,104950.0,0.32798462]
[1738244900565,0.201576,104960.0,104950.0,0.224194]
[1738244900862,0.201576,104960.0,104950.0,0.002]
[1738244901466,0.201576,104960.0,104950.0,0.192594]
[1738244902253,0.201576,104960.0,104950.0,0.224954]
[1738244903256,0.201576,104960.0,104950.0,0.32874462]
[1738244903860,0.562376,104960.0,104950.0,0.32874462]
[1738244904064,0.562376,104960.0,104950.0,0.224954]
[1738244904965,0.233476,104960.0,104950.0,0.224954]
[1738244905466,0.594276,104960.0,104950.0,0.224954]
[1738244905966,0.594276,104960.0,104950.0,0.32874462]
[1738244906158,0.562376,104960.0,104950.0,0.32874462]
[1738244906354,0.011,104960.0,104950.0,0.32874462]
[1738244906553,0.011,104960.0,104950.0,0.39164462]
[1738244906764,0.001,104960.0,104950.0,0.39164462]
[1738244909266,0.191576,104960.0,104950.0,0.255454]
[1738244909470,0.552376,104960.0,104950.0,0.255454]
[1738244909668,0.191576,104960.0,104950.0,0.255454]
[1738244910171,0.191576,104960.0,104950.0,0.224954]
[1738244910172,0.552376,104960.0,104950.0,0.224954]
[1738244910474,0.221876,104960.0,104950.0,0.224954]
[1738244910867,0.582676,104960.0,104950.0,0.32874462]
[1738244911568,0.3921,104960.0,104950.0,0.32874462]
[1738244911870,0.001,104960.0,104950.0,0.32874462]
[1738244912174,0.001,104960.0,104950.0,0.35914462]
[1738244912470,0.001,104960.0,104950.0,0.75084462]
[1738244920874,0.001,104960.0,104950.0,0.39004462]
[1738244921077,0.001,104960.0,104950.0,0.75084462]
[1738244921378,0.001,104960.0,104950.0,0.39004462]
[1738244921880,0.001,104960.0,104950.0,0.75084462]
[1738244922378,0.001,104960.0,104950.0,0.39004462]
[1738244923079,0.001,104960.0,104950.0,0.75084462]
[1738244925173,0.79745538,104950.0,104940.0,0.35343919]
[1738244925376,0.79745538,104950.0,104940.0,0.78395343]
[1738244926781,0.79745538,104950.0,104940.0,0.71371211]
[1738244926975,0.79745538,104950.0,104940.0,0.71671211]
[1738244927376,0.79845538,104950.0,104940.0,0.71671211]
[1738244928578,0.79845538,104950.0,104940.0,0.74771211]
[1738244929083,0.79845538,104950.0,104940.0,0.74767211]
[1738244931372,0.79845538,104950.0,104940.0,1.43605576]
[1738244933486,0.79845538,104950.0,104940.0,1.40377576]
[1738244933678,0.79845538,104950.0,104940.0,1.43605576]
[1738244934078,0.79845538,104950.0,104940.0,2.06605576]
[1738244934279,0.79845538,104950.0,104940.0,1.37767211]
[1738244934677,0.79845538,104950.0,104940.0,0.74767211]
[1738244937683,0.79845538,104950.0,104940.0,1.0325886]
[1738244940487,0.79845538,104950.0,104940.0,1.5819427]
[1738244940980,0.79845538,104950.0,104940.0,1.2211427]
[1738244941675,0.79845538,104950.0,104940.0,1.1888627]
[1738244941880,0.79845538,104950.0,104940.0,1.2211427]
[1738244942384,0.79845538,104950.0,104940.0,1.1901427]
[1738244944891,0.79845538,104950.0,104940.0,1.0948367]
[1738244945191,0.79845538,104950.0,104940.0,1.0545967]
[1738244945389,0.79845538,104950.0,104940.0,1.39649649]
[1738244946301,0.79845538,104950.0,104940.0,1.42829649]
[1738244947300,0.23275413,104950.0,104940.0,1.86776645]
[1738244947492,0.23275413,104950.0,104940.0,1.83552645]
[1738244947694,0.23275413,104950.0,104940.0,1.79909649]
[1738244948200,0.23275413,104950.0,104940.0,2.49776645]
[1738244949001,0.23275413,104950.0,104940.0,1.58284996]
[1738244949702,0.23275413,104950.0,104940.0,1.51418]
[1738244949998,0.23275413,104950.0,104940.0,1.58284996]
[1738244952502,0.23275413,104950.0,104940.0,1.24095017]
[1738244953003,0.0001426,104970.0,104960.0,0.190576]
[1738244953199,0.0317,104980.0,104970.0,0.190558]
[1738244953503,0.0317,104980.0,104970.0,0.68869792]
[1738244953903,0.064,104980.0,104970.0,0.65226796]
[1738244954213,0.0961,104980.0,104970.0,0.65226796]
[1738244955297,0.0961,104980.0,104970.0,0.62002796]
[1738244955491,0.0961,104980.0,104970.0,0.65226796]
[1738244955697,0.0961,104980.0,104970.0,1.57250707]
[1738244956607,0.0961,104980.0,104970.0,1.64117703]
[1738244957200,0.4569,104980.0,104970.0,1.28037703]
[1738244958499,0.4569,104980.0,104970.0,1.29526901]
[1738244959203,0.0961,104980.0,104970.0,1.29526901]
[1738244959509,0.4569,104980.0,104970.0,1.29526901]
[1738244959708,0.64744,104980.0,104970.0,0.3750299]
[1738244960011,0.64744,104980.0,104970.0,0.30635994]
[1738244960198,0.64744,104980.0,104970.0,0.3750299]
[1738244961209,0.64744,104980.0,104970.0,0.30635994]
[1738244962309,0.64744,104980.0,104970.0,0.06866996]
[1738244962501,0.65744,104980.0,104970.0,0.10086996]
[1738244963210,0.65744,104980.0,104970.0,0.06866996]
[1738244963510,0.65744,104980.0,104970.0,0.10086996]
[1738244963511,0.64744,104980.0,104970.0,0.10086996]
[1738244964103,0.64744,104980.0,104970.0,0.06866996]
[1738244964306,0.64744,104980.0,104970.0,0.10086996]
[1738244964811,0.65744,104980.0,104970.0,0.10086996]
[1738244968101,0.65744,104980.0,104970.0,0.29142796]
[1738244976417,0.65744,104980.0,104970.0,0.10086996]
[1738244978302,0.65744,104980.0,104970.0,0.11575783]
[1738244978619,0.65744,104980.0,104970.0,0.10082996]
[1738244979506,0.65744,104980.0,104970.0,0.29138796]
[1738244981331,0.4248,104980.0,104970.0,0.36005792]
[1738244981614,0.3925,104980.0,104970.0,0.36005792]
[1738244981811,0.3608,104980.0,104970.0,0.36005792]
[1738244982011,0.3608,104980.0,104970.0,0.42505792]
[1738244982314,0.3709426,104990.0,104980.0,0.19054]
[1738244982510,0.3609426,104990.0,104980.0,0.34277127]
[1738244983123,0.3609426,104990.0,104980.0,0.37587115]
[1738244983620,0.0021426,104990.0,104980.0,0.80534111]
[1738244983814,0.19970081,105010.0,104990.0,0.190522]
[1738244984113,0.26014738,105020.0,105010.0,0.190486]
[1738244984311,0.22804738,105020.0,105010.0,0.34271715]
[1738244984511,0.22804738,105020.0,105010.0,0.73661715]
[1738244985415,0.3609426,105030.0,105010.0,0.73661715]
[1738244985611,0.3609426,105030.0,105020.0,0.16949992]
[1738244985919,0.5513916,105030.0,105020.0,0.16949992]
[1738244986514,0.01,105020.0,105010.0,0.10852092]
[1738244986713,0.626268,105020.0,105010.0,0.10552092]
[1738244986917,0.626268,105020.0,105010.0,0.13768092]
[1738244988612,0.626268,105020.0,105010.0,0.13668092]
[1738244989013,0.200486,105010.0,105000.0,0.13678352]
[1738244989212,0.3937,105010.0,105000.0,0.43180844]
[1738244989608,0.0342,105020.0,105010.0,0.190486]
[1738244989821,0.396,105020.0,105010.0,0.29500692]
[1738244990423,0.395,105020.0,105010.0,0.29500692]
[1738244990621,0.0342,105020.0,105010.0,0.29500692]
[1738244990817,0.395,105020.0,105010.0,0.29500692]
[1738244991123,0.396,105020.0,105010.0,0.29800692]
[1738244991621,0.396,105020.0,105010.0,0.32900692]
[1738244992019,0.0342,105020.0,105010.0,0.32900692]
[1738244992219,0.395,105020.0,105010.0,0.32900692]
[1738244993124,0.395,105020.0,105010.0,0.33000692]
[1738244993421,0.0342,105020.0,105010.0,0.33000692]
[1738244993824,0.395,105020.0,105010.0,0.33000692]
[1738244994022,0.0342,105020.0,105010.0,0.33000692]
[1738244994320,0.001,105020.0,105010.0,0.69080692]
[1738244994522,0.001,105020.0,105010.0,0.72230692]
[1738244997715,0.3618,105020.0,105010.0,0.36150692]
[1738244998326,0.001,105020.0,105010.0,0.33000692]
[1738244998627,0.001,105020.0,105010.0,0.36150692]
[1738244999818,0.001,105020.0,105010.0,0.37150692]
[1738245000524,0.3618,105020.0,105010.0,0.40358692]
[1738245000715,0.3618,105020.0,105010.0,0.37208692]
[1738245000920,0.583068,105020.0,105010.0,0.34108692]
[1738245002027,0.583068,105020.0,105010.0,0.34008692]
[1738245002418,0.583068,105020.0,105010.0,0.97008692]
[1738245003225,0.582068,105020.0,105010.0,0.96908692]
[1738245003626,0.582068,105020.0,105010.0,0.77860092]
[1738245003838,0.582068,105020.0,105010.0,0.002]
[1738245004033,0.582068,105020.0,105010.0,0.10652092]
[1738245004338,0.582068,105020.0,105010.0,0.13860092]
[1738245004526,0.582068,105020.0,105010.0,0.03408]
[1738245005332,0.583068,105020.0,105010.0,0.03408]
[1738245005716,0.190486,105010.0,105000.0,0.76674352]
[1738245005921,0.613886,105010.0,105000.0,0.73466352]
[1738245006118,0.613886,105010.0,105000.0,0.76674352]
[1738245006326,0.613886,105010.0,105000.0,0.95724752]
[1738245006526,0.3912,105010.0,105000.0,1.06176844]
[1738245006927,0.0314,105010.0,105000.0,1.06176844]
[1738245007326,0.001,105010.0,105000.0,1.42256844]
[1738245007524,0.3936,105020.0,105010.0,0.190486]
[1738245007727,0.3936,105020.0,105010.0,0.29500692]
[1738245008228,0.3916,105020.0,105010.0,0.30985898]
[1738245008438,0.0419426,105030.0,105010.0,0.5846939]
[1738245008630,0.0419426,105030.0,105020.0,0.46358984]
[1738245008933,0.0419426,105030.0,105020.0,0.4784419]
[1738245009836,0.0419426,105030.0,105020.0,1.1084419]
[1738245010837,0.0419426,105030.0,105020.0,0.4784419]
[1738245011937,0.0419426,105030.0,105020.0,0.37392098]
[1738245011938,0.4027426,105030.0,105020.0,0.37392098]
[1738245012530,0.0419426,105030.0,105020.0,0.37392098]
[1738245012732,0.5931916,105030.0,105020.0,0.15145298]
[1738245013129,0.5931916,105030.0,105020.0,0.15148467]
[1738245015240,0.5941916,105030.0,105020.0,0.15148467]
[1738245015443,0.5941916,105030.0,105020.0,0.15144467]
[1738245015631,0.5941916,105030.0,105020.0,0.13656092]
[1738245016226,0.5951916,105030.0,105020.0,0.13656092]
[1738245017345,0.5951916,105030.0,105020.0,0.15144795]
[1738245017536,0.5951916,105030.0,105020.0,0.11940795]
[1738245017737,0.5951916,105030.0,105020.0,0.15144795]
[1738245018243,0.5951916,105030.0,105020.0,0.13656092]
[1738245019137,0.5951916,105030.0,105020.0,0.15144783]
[1738245019440,0.5851916,105030.0,105020.0,0.15144783]
[1738245019636,0.5851916,105030.0,105020.0,0.13656092]
[1738245020751,0.5951916,105030.0,105020.0,0.32702892]
[1738245021746,0.5951916,105030.0,105020.0,0.34191558]
[1738245023343,0.4047426,105030.0,105020.0,0.3657333]
[1738245023541,0.0439426,105030.0,105020.0,0.36573184]
[1738245023845,0.4047426,105030.0,105020.0,0.36573184]
[1738245024348,0.5951926,105030.0,105020.0,0.36573246]
[1738245024649,0.5941926,105030.0,105020.0,0.34191466]
[1738245024938,0.5941926,105030.0,105020.0,0.15144734]
[1738245025739,0.5951926,105030.0,105020.0,0.03204]
[1738245026547,0.5951926,105030.0,105020.0,0.04692703]
[1738245026848,0.5951926,105030.0,105020.0,0.03204]
[1738245027148,0.190468,105020.0,105010.0,0.43141341]
[1738245027353,0.583468,105020.0,105010.0,0.55082219]
[1738245027537,0.583468,105020.0,105010.0,0.53593433]
[1738245028244,0.583468,105020.0,105010.0,0.43141341]
[1738245028448,0.583468,105020.0,105010.0,0.43341341]
[1738245028653,0.583468,105020.0,105010.0,0.40137341]
[1738245029337,0.583468,105020.0,105010.0,0.002]
[1738245029537,0.68798892,105020.0,105010.0,0.002]
[1738245029949,0.190486,105010.0,105000.0,0.13670352]
[1738245030157,0.581686,105010.0,105000.0,0.13670352]
[1738245030453,0.581686,105010.0,105000.0,0.10466352]
[1738245031546,0.582686,105010.0,105000.0,0.10466352]
[1738245032050,0.583686,105010.0,105000.0,0.10466352]
[1738245033244,0.583686,105010.0,105000.0,0.29516752]
[1738245033654,0.583686,105010.0,105000.0,0.32720752]
[1738245035539,0.583686,105010.0,105000.0,0.29516752]
[1738245038455,0.583686,105010.0,105000.0,0.92516752]
[1738245045350,0.583686,105010.0,105000.0,0.95716752]
[1738245045550,2.131986,105010.0,105000.0,0.95716752]
[1738245046860,2.141986,105010.0,105000.0,0.95716752]
[1738245047365,2.111586,105010.0,105000.0,1.06168844]
[1738245048461,2.111586,105010.0,105000.0,1.07657784]
[1738245049258,2.111586,105010.0,105000.0,0.97205692]
[1738245049555,1.9211,105010.0,105000.0,1.07657784]
[1738245049859,1.9111,105010.0,105000.0,1.06168844]
[1738245050054,1.9111,105010.0,105000.0,1.49528844]
[1738245050055,1.5503,105010.0,105000.0,1.49528844]
[1738245051259,1.5493,105010.0,105000.0,1.49828844]
[1738245051460,1.5493,105010.0,105000.0,1.53699532]
[1738245053258,1.5493,105010.0,105000.0,1.93636873]
[1738245053858,1.5493,105010.0,105000.0,1.90436766]
[1738245054053,1.5493,105010.0,105000.0,1.93632766]
[1738245055055,1.5493,105010.0,105000.0,1.93632767]
[1738245055852,1.5493,105010.0,105000.0,1.54356767]
[1738245056057,1.5493,105010.0,105000.0,1.4044884]
[1738245056254,1.9101,105010.0,105000.0,1.29996748]
[1738245056455,1.5493,105010.0,105000.0,1.21158851]
[1738245056661,1.5493,105010.0,105000.0,1.37189167]
[1738245057361,1.5493,105010.0,105000.0,1.36189073]
[1738245057763,1.9101,105010.0,105000.0,1.17138851]
[1738245057962,1.5917,105010.0,105000.0,0.57334851]
[1738245058355,1.5917,105010.0,105000.0,1.20334851]
[1738245058556,1.9525,105010.0,105000.0,1.20334851]
[1738245058758,1.5917,105010.0,105000.0,1.17138851]
[1738245059057,1.5917,105010.0,105000.0,1.20334851]
[1738245059571,2.142986,105010.0,105000.0,0.97401437]
[1738245059758,2.142986,105010.0,105000.0,0.78451037]
[1738245060068,2.141986,105010.0,105000.0,0.67998945]
[1738245060369,2.141986,105010.0,105000.0,0.0341026]
[1738245060667,2.142986,105010.0,105000.0,0.6641026]
[1738245061266,2.143986,105010.0,105000.0,0.6621026]
[1738245061459,2.143986,105010.0,105000.0,0.76662352]
[1738245061666,2.143986,105010.0,105000.0,0.95712752]
[1738245064763,2.143986,105010.0,105000.0,0.92516752]
[1738245064964,2.143986,105010.0,105000.0,0.95712752]
[1738245067370,2.133986,105010.0,105000.0,0.8206466]
[1738245067571,2.133986,105010.0,105000.0,0.92516752]
[1738245067869,2.133986,105010.0,105000.0,0.29516752]
[1738245068271,2.133986,105010.0,105000.0,0.1906466]
[1738245074383,2.133986,105010.0,105000.0,0.0001426]
[1738245076373,2.133986,105010.0,105000.0,0.1906466]
[1738245078187,2.133986,105010.0,105000.0,0.29516752]
[1738245078392,2.133986,105010.0,105000.0,0.32708752]
[1738245080782,1.773186,105010.0,105000.0,0.32708752]
[1738245080982,2.133986,105010.0,105000.0,0.32708752]
[1738245081381,1.9535,105010.0,105000.0,0.4145783]
[1738245081587,1.9435,105010.0,105000.0,0.4811983]
[1738245081787,1.9435,105010.0,105000.0,0.37667738]
[1738245082090,1.9435,105010.0,105000.0,0.40049981]
[1738245082394,2.133986,105010.0,105000.0,0.37667738]
[1738245082789,2.132986,105010.0,105000.0,0.37667738]
[1738245083398,2.132986,105010.0,105000.0,0.37667679]
[1738245083596,2.133986,105010.0,105000.0,0.37667679]
[1738245084300,1.9435,105010.0,105000.0,0.40049959]
[1738245084498,1.9435,105010.0,105000.0,0.50502051]
[1738245084692,1.9111,105010.0,105000.0,0.50502051]
[1738245085089,1.9111,105010.0,105000.0,0.53932051]
[1738245085592,1.9101,105010.0,105000.0,0.43479959]
[1738245085793,1.9101,105010.0,105000.0,0.40049959]
[1738245086096,1.9101,105010.0,105000.0,0.5715427]
[1738245086296,1.9101,105010.0,105000.0,0.5477199]
[1738245086798,2.099586,105010.0,105000.0,0.5497199]
[1738245086993,2.134686,105010.0,105000.0,0.5497199]
[1738245087392,2.135686,105010.0,105000.0,0.5477199]
[1738245087790,1.9452,105010.0,105000.0,0.54772008]
[1738245087991,1.9101,105010.0,105000.0,0.54772008]
[1738245088196,1.9101,105010.0,105000.0,0.71256363]
[1738245088597,1.9111,105010.0,105000.0,0.71256363]
[1738245088998,1.9111,105010.0,105000.0,0.60804271]
[1738245089399,1.9101,105010.0,105000.0,0.60804157]
[1738245089603,1.5493,105010.0,105000.0,0.60804157]
[1738245089900,1.5483,105010.0,105000.0,0.61004157]
[1738245091100,1.9091,105010.0,105000.0,0.76995571]
[1738245091296,2.099586,105010.0,105000.0,0.60691267]
[1738245091501,2.132986,105010.0,105000.0,0.40151985]
[1738245091797,2.132986,105010.0,105000.0,0.43339985]
[1738245092500,2.133986,105010.0,105000.0,0.43339985]
[1738245092707,2.23850692,105010.0,105000.0,0.40151985]
[1738245092891,2.23850692,105010.0,105000.0,0.43339985]
[1738245093397,2.23850692,105010.0,105000.0,0.40151985]
[1738245093796,2.23950692,105010.0,105000.0,0.0001426]
[1738245094001,0.190504,105000.0,104990.0,0.39937725]
[1738245094196,0.69232492,105000.0,104990.0,0.39937725]